Entity,Pay date,Expense Type,Expense Area,Supplier,Transaction Number,Amount,Description
NS&I,19/12/2018,Unitary fee - Outsource partner,Commercial Contracts,Atos IT Services UK Ltd,4013059,"4,738,066.77",Unitary Service Charge - December 2018
NS&I,19/12/2018,Demand-linked costs - Outsource partner,Commercial Contracts,Atos IT Services UK Ltd,4013095,"1,848,111.00",Demand Link Service Charge - November 2018
NS&I,19/12/2018,Demand-linked costs - Outsource partner,Commercial Contracts,Atos IT Services UK Ltd,4013096,"1,848,111.00",Demand Link Service Charge - December 2018
NS&I,05/12/2018,Demand-linked costs - Outsource partner,Commercial Contracts,Atos IT Services UK Ltd,4012907,"1,818,303.00",Demand Link Service Charge - October 2018
NS&I,19/12/2018,Unitary fee - Outsource partner,B2B Government Payment Services,Atos IT Services UK Ltd,4012947,"1,243,692.93",Tax-Free Childcare Service Charges - October 2018
NS&I,19/12/2018,Unitary fee - Outsource partner,B2B Government Payment Services,Atos IT Services UK Ltd,4012991,"673,315.01",Help to Save Service Charges - October 2018
NS&I,19/12/2018,Unitary fee - Outsource partner,B2B Government Payment Services,Atos IT Services UK Ltd,4013044,"666,107.16",Tax-Free Childcare Project Charges October 2018
NS&I,05/12/2018,Building services charge,Workplace & Culture,Atos IT Services UK Ltd,4012893,"491,221.00",Regional Office Refit
NS&I,24/12/2018,Project costs - Outsource partner,Programme Delivery,Atos IT Services UK Ltd,4013108,"487,970.00",Communication of changes to cheque clearing process
NS&I,03/12/2018,Internal audit fees,Risk,Government Internal Audit Agency,4012853,"474,187.44",Internal Audit Fees Q1 & Q2 2018 / 2019
NS&I,27/12/2018,Project costs - Outsource partner,Programme Delivery,Atos IT Services UK Ltd,4013157,"461,796.00",Financial Adviser Website Development November 2018
NS&I,19/12/2018,Unitary fee - Outsource partner,B2B Government Payment Services,Atos IT Services UK Ltd,4012992,"356,424.46",Help To Save Project Charges - October 2018
NS&I,24/12/2018,Project costs - Outsource partner,Programme Delivery,Atos IT Services UK Ltd,4013109,"339,123.00",Financial Adviser Website Development October 2018
NS&I,05/12/2018,Project costs - Outsource partner,Programme Delivery,Atos IT Services UK Ltd,4012894,"299,880.00",Strategic review of core banking engine October 2018
NS&I,27/12/2018,Project costs - Outsource partner,Programme Delivery,Atos IT Services UK Ltd,4013163,"297,146.00",Improving authentication process November 2018
NS&I,24/12/2018,Building services charge,Workplace & Culture,James Andrew International,4013152,"289,490.26",Quarterly Rent for Regional Office Q1 2019
NS&I,19/12/2018,Unitary fee - Outsource partner,B2B Government Payment Services,Atos IT Services UK Ltd,4012970,"241,802.41",30 Hours Free Childcare Service Charges October 2018
NS&I,12/12/2018,Project costs - Outsource partner,Programme Delivery,Atos IT Services UK Ltd,4012909,"240,633.00",Improving authentication process October 2018
NS&I,27/12/2018,Project costs - Outsource partner,Programme Delivery,Atos IT Services UK Ltd,4013162,"240,068.00",Open Banking On-going Charges - July to November 2018
NS&I,03/12/2018,Advertising and production,Marketing Communications,Carat (Registered as Dentsu Aegis UK Ltd),4012818,"235,724.19",Cost of Marketing Campaigns
NS&I,24/12/2018,Project costs - Outsource partner,Programme Delivery,Atos IT Services UK Ltd,4013110,"225,380.00",Delivering changes to products � SKULD
NS&I,24/12/2018,Rentals under operating leases,Workplace & Culture,Durham County Council - City of Durham,4013121,"203,507.10",Quarterly Rent for Regional Office Q1 2019
NS&I,24/12/2018,Advertising and production,Marketing Communications,Manning Gottlieb OMD,4012932,"195,545.16",Cost of Marketing Campaigns
NS&I,03/12/2018,Advertising and production,Marketing Communications,Carat (Registered as Dentsu Aegis UK Ltd),4012908,"189,364.49",Cost of Marketing Campaigns
NS&I,05/12/2018,Project costs - Outsource partner,Programme Delivery,Atos IT Services UK Ltd,4012892,"174,200.00",Transformation programme - Management cost - October 2018
NS&I,19/12/2018,Unitary fee - Outsource partner,B2B Government Payment Services,Atos IT Services UK Ltd,4012968,"171,177.01",Tax-Free Childcare Service Charges October 2018
NS&I,24/12/2018,Project costs - Outsource partner,Programme Delivery,Atos IT Services UK Ltd,4013111,"155,000.00",Data Warehouse Development Work 
NS&I,05/12/2018,Maintenance and running costs - Outsource partner,IS & Information Assurance,Atos IT Services UK Ltd,4012895,"150,220.00",Information Systems Testing - September - October 2018
NS&I,03/12/2018,Advertising and production,Marketing Communications,Carat (Registered as Dentsu Aegis UK Ltd),4012800,"149,648.93",Cost of Marketing Campaigns
NS&I,27/12/2018,Project costs - Outsource partner,Programme Delivery,Atos IT Services UK Ltd,4013161,"140,854.00",Open Banking  - October & November 2018
NS&I,19/12/2018,Advertising agency costs,Marketing Communications,FCB Inferno Limited,4013101,"137,141.68",Cost of Marketing Campaigns
NS&I,19/12/2018,Unitary fee - Outsource partner,B2B Government Payment Services,Atos IT Services UK Ltd,4012969,"133,140.13",30 Hours Free Childcare Service Charges October 2018
NS&I,19/12/2018,Unitary fee - Outsource partner,B2B Government Payment Services,Atos IT Services UK Ltd,4012950,"130,617.41",Court Funds Office Service Charges - October 2018
NS&I,19/12/2018,Advertising and production,Marketing Communications,Carat (Registered as Dentsu Aegis UK Ltd),4013042,"118,644.02",Cost of Marketing Campaigns
NS&I,24/12/2018,Advertising and production,Marketing Communications,Manning Gottlieb OMD,4013146,"118,394.09",Cost of Marketing Campaigns
NS&I,24/12/2018,Project costs - Outsource partner,Programme Delivery,Atos IT Services UK Ltd,4013112,"117,042.00",Development of Software for Image Clearing System August - November 2018
NS&I,03/12/2018,Internal audit fees,Risk,Government Internal Audit Agency,4012827,"112,509.60",Internal Audit Fees 2017 / 2018
NS&I,12/12/2018,Unitary fee - Outsource partner,B2B Government Payment Services,Atos IT Services UK Ltd,4012967,"125,554.37",Help to Buy Project costs - October 2018
NS&I,24/12/2018,Advertising and production,Marketing Communications,Manning Gottlieb OMD,4013147,"87,313.07",Cost of Marketing Campaigns
NS&I,05/12/2018,Project costs - Outsource partner,Retail Experience,Atos IT Services UK Ltd,4012834,"84,124.00",Website Improvement Costs
NS&I,12/12/2018,Unitary fee - Outsource partner,B2B Government Payment Services,Atos IT Services UK Ltd,4012826,"92,331.62",Help to Buy Project costs - September 2018
NS&I,19/12/2018,Advertising and production,Marketing Communications,Manning Gottlieb OMD,4013049,"67,896.47",Cost of Marketing Campaigns
NS&I,24/12/2018,Project costs - Outsource partner,Programme Delivery,Atos IT Services UK Ltd,4013119,"67,396.00",Delivering Fixed Term Penalty product changes - November 2018
NS&I,05/12/2018,Direct marketing,Marketing Communications,Royal Mail Group Ltd,4012819,"59,326.74",Cost of Marketing Campaigns
NS&I,24/12/2018,Project costs - Outsource partner,Programme Delivery,Atos IT Services UK Ltd,4013136,"57,422.00",Delivering IT orchestration improvements - November 2018
NS&I,12/12/2018,Project costs - Outsource partner,Programme Delivery,Atos IT Services UK Ltd,4012904,"55,418.00",Delivering IT orchestration improvements - October 2018
NS&I,03/12/2018,Professional services - Other,B2B Government Payment Services,Government Internal Audit Agency,4012863,"54,244.80",Internal Audit Fees
NS&I,27/12/2018,Product account bank charges,Finance,RBSG NS&I Charges A/c,4013107,"53,106.35",RBS Quarterly Bank Charges September-November 2018
NS&I,19/12/2018,Unitary fee - Outsource partner,B2B Government Payment Services,Atos IT Services UK Ltd,4012946,"52,517.98",Tax-Free Childcare Service Charges October 2018
NS&I,31/12/2018,Maintenance and running costs - Outsource partner,IS & Information Assurance,Atos IT Services UK Ltd,4013168,"48,735.00",Information Systems Testing - November 2018
NS&I,24/12/2018,Training and development costs,Learning & Development,KPMG LLP (CSL Contract),4013120,"46,958.40",KPMG (Civil Service Learning) leadership development
NS&I,24/12/2018,Advertising and production,Marketing Communications,Manning Gottlieb OMD,4013138,"44,531.37",Cost of Marketing Campaigns
NS&I,12/12/2018,Project costs - Outsource partner,Programme Delivery,Atos IT Services UK Ltd,4012954,"43,831.00",Delivering changes to products � SKULD
NS&I,03/12/2018,Advertising and production,Marketing Communications,Carat (Registered as Dentsu Aegis UK Ltd),4012816,"43,632.29",Cost of Marketing Campaigns
NS&I,05/12/2018,Unitary fee - Outsource partner,Change Delivery,Atos IT Services UK Ltd,4012890,"37,938.00","Strategic Review of Change Methodology, processes and behaviours"
NS&I,07/12/2018,Purchasing card charges,Finance,NatWest 471505930101077,4012987,"36,835.42",Credit Card purchases - October & November 2018
NS&I,12/12/2018,Maintenance and running costs - Outsource partner,Product Management,Atos IT Services UK Ltd,4012926,"36,170.00",Communication on Rate Change
NS&I,12/12/2018,Other travel and travel services,Finance,Redfern Travel Limited,4012985,"36,122.23",Travel Data for October 2018
NS&I,24/12/2018,Project costs - Outsource partner,Retail Experience,Atos IT Services UK Ltd,4013068,"33,917.00",Website Improvement Costs - November 2018
NS&I,05/12/2018,Project costs - Outsource partner,Retail Experience,Atos IT Services UK Ltd,4012875,"33,459.00",Website Improvement Costs - October 2018
NS&I,05/12/2018,Training and development costs,Learning & Development,CSL-Korn Ferry Hay Group,4012873,"32,210.88",Korn Ferry (Civil Service Learning) leadership assessment and development
NS&I,12/12/2018,Maintenance and running costs - Outsource partner,Database & e-Marketing,Atos IT Services UK Ltd,4012874,"30,624.00",Communication Services 2018/19
NS&I,12/12/2018,Project costs - Outsource partner,Programme Delivery,Atos IT Services UK Ltd,4012891,"29,731.00",New voice recognition system
NS&I,12/12/2018,Market research,Market Intelligence & Research,Discovery Research Ltd.,4012999,"29,556.00",Qualitative & quantitative research
NS&I,24/12/2018,Advertising agency costs,Marketing Communications,Unlimited Group United Ltd,4012927,"27,216.00",Cost of Marketing Campaigns
NS&I,24/12/2018,Advertising agency costs,Marketing Communications,Unlimited Group United Ltd,4012928,"27,216.00",Cost of Marketing Campaigns
NS&I,19/12/2018,Maintenance and running costs - Outsource partner,Retail Experience,The Team Brand Communications Ltd,4013083,"27,126.76",Resources and initiatives for savings engagement 
NS&I,05/12/2018,Unitary fee - Outsource partner,Commercial Contracts,Atos IT Services UK Ltd,4012923,"-52,641.72",Unitary Service Adjustment - Credit Received
